Cogmind - Beta 14 @@@ ROGUE MODE // 2024.09.07 @ 19:52:49 Player: celerysam Result: Destroyed by S-27 Virus with Autogun Performance ------------- Evolutions (3) 1500 Regions Visited (8) 1600 Robots Destroyed (41) 205 Value Destroyed (1452) 1452 Prototype IDs (24) 480 Alien Tech Used (0) 0 Bonus (311) 311 TOTAL SCORE: 5548 Bonus ------- High Alert Combat Kills 11 Aligned with FarCom 300 Cogmind --------- Core Integrity 0/700 Matter 212/300 Energy 79/100 System Corruption 0% Temperature Cool (0) Movement Core (50) Location -7/Storage Parts ------- > --- POWER (2) -------- (None) > --- PROPULSION (4) --- Airjet > --- UTILITY (5) ------ Signal Interpreter Hacking Suite > --- WEAPON (2) ------- (None) > --- INVENTORY (5) ---- Machine Analyzer Authchip [Propulsion] Peak State ------------ > --- POWER ------------ Improved Ion Engine Improved Deuterium Engine > --- PROPULSION ------- Improved Titanium Leg Improved Titanium Leg Potential Leg Potential Leg > --- UTILITY ---------- Cooling System Signal Interpreter Improved Medium Armor Plating Hacking Suite System Restoration Module > --- WEAPON ----------- Heavy Laser Minigun > --- INVENTORY -------- Airjet Airjet Machine Analyzer Authchip [Propulsion] Rocket Launcher [Rating: 56] Favorites ----------- Power Improved Ion Engine Engine Improved Ion Engine Power Core Light Nuclear Core Propulsion Light Treads Treads Light Treads Leg Potential Leg Wheel Wheel Hover Unit Airjet Utility Cooling System Device Cooling System Storage Small Storage Unit Processor Signal Interpreter Hackware Hacking Suite Protection Hardened Medium Armor Plating Weapon Improved Assault Rifle Energy Gun Heavy Laser Energy Cannon EM Pulse Cannon Ballistic Gun Improved Assault Rifle Ballistic Cannon Advanced Assault Cannon Launcher Rocket Launcher Build | -11 -10 -9 -9 -9 -8 -8 -7 -7 ------- Run | Yrd Mat Mat Min Exi Min Mat Fac Sto Slots Evolved 6 | . . 2 . . . 2 2 . Power 1 | . . . . . . . 1 . Propulsion 2 | . . 1 . . . 1 . . Utility 3 | . . 1 . . . 1 1 . Weapon . | . . . . . . . . . Parts Attached 55 | 6 5 16 . 2 . 12 8 6 Power 7 | 1 1 2 . . . . 3 . Engine 6 | 1 1 2 . . . . 2 . Core 1 | . . . . . . . 1 . Reactor . | . . . . . . . . . Propulsion 14 | 2 . 3 . 2 . 4 . 3 Treads 3 | . . 3 . . . . . . Leg 5 | . . . . 2 . 2 . 1 Wheel 2 | 2 . . . . . . . . Hover 4 | . . . . . . 2 . 2 Flight . | . . . . . . . . . Utility 14 | 1 1 4 . . . 5 3 . Device 4 | . 1 1 . . . . 2 . Storage 1 | 1 . . . . . . . . Processor 1 | . . . . . . 1 . . Hackware 1 | . . . . . . 1 . . Protection 7 | . . 3 . . . 3 1 . Artifact . | . . . . . . . . . Weapon 20 | 2 3 7 . . . 3 2 3 Energy Gun 9 | 1 2 3 . . . 1 1 1 Energy Cannon 1 | . . 1 . . . . . . Ballistic Gun 6 | 1 . 3 . . . 1 1 . Ballistic Cannon 1 | . . . . . . . . 1 Launcher 3 | . 1 . . . . 1 . 1 Special Weapon . | . . . . . . . . . Impact Weapon . | . . . . . . . . . Slashing Weapon . | . . . . . . . . . Piercing Weapon . | . . . . . . . . . Special Melee Weapon . | . . . . . . . . . Unidentified Prototypes 1 | . . 1 . . . . . . Parts Lost 19 | . 1 1 . . . . 2 15 Power 4 | . . . . . . . 2 2 Propulsion 7 | . . 1 . . . . . 6 Utility 3 | . . . . . . . . 3 Weapon 5 | . 1 . . . . . . 4 Highest Loss Streak 9 | . 1 1 . . . . 1 9 To Critical Strikes . | . . . . . . . . . Average Slot Usage (%) 96 | . 92 98 100 100 100 98 98 76 Engine 10 | . 14 11 11 11 11 9 13 4 Treads 18 | . . 30 33 25 11 . . . Leg 9 | . . . . 7 22 21 30 26 Wheel 2 | . 28 2 . . . . . . Hover 1 | . . . . . . 13 . . Device 11 | . 8 11 11 11 11 9 15 10 Storage 8 | . 14 11 11 11 11 4 . . Processor 2 | . . . . . . 9 7 7 Hackware 1 | . . . . . . 3 7 7 Protection 8 | . . 10 11 11 11 9 7 3 Energy Gun 4 | . 20 6 . . . 4 7 3 Energy Cannon 6 | . . 4 11 11 11 4 . . Ballistic Gun 8 | . 3 10 11 11 11 8 4 3 Peak Build Rating 56 | 6 10 18 18 36 36 48 56 56 Average Rating 26 | 3 7 15 18 24 36 44 53 43 On Entrance 24 | . 6 7 18 18 36 36 47 56 Naked Turns . | . . . . . . . . . Heaviest Build 34 | 11 14 31 31 31 31 31 34 28 Greatest Support 100 | 20 20 60 60 60 60 100 100 100 Greatest Overweight (x) 2 | . . 2 . 1 . . . . Average Overweight (x) . | . . . . . . . . . Largest Inventory Capacity 8 | 8 8 8 8 8 8 8 5 5 Average Capacity 7 | 5 8 8 8 8 8 6 5 5 Most Carried 8 | 6 8 8 8 8 8 8 5 5 Average Carried 7 | 4 7 7 8 8 8 6 4 4 Final Capacity 8 | 8 8 8 8 8 8 5 5 5 Final Carried 8 | 6 8 8 8 8 8 5 5 2 Class Distribution -------------------- 92% | Mutant 6% | Scavenger-Mutant Dominant Class ---------------- Mutant | -10/Materials Mutant | -9/Materials Mutant | -9/Mines Mutant | -9/Exiles Mutant | -8/Mines Mutant | -8/Materials Mutant | -7/Factory Mutant | -7/Storage Resources | -11 -10 -9 -9 -9 -8 -8 -7 -7 ----------- Run | Yrd Mat Mat Min Exi Min Mat Fac Sto Matter Collected 939 | 217 38 296 58 . 20 189 119 2 Remotely . | . . . . . . . . . Salvage Created 1498 | . 182 472 199 . . 485 140 20 Parts 100 | . 7 36 16 . . 28 9 4 Haulers Intercepted 2 | . . 1 . . . 1 . . Recyclers Shooed . | . . . . . . . . . Parts Field Recycled . | . . . . . . . . . Retrieved Matter . | . . . . . . . . . Parts Self-Destructed . | . . . . . . . . . Prevented . | . . . . . . . . . Kills | -11 -10 -9 -9 -9 -8 -8 -7 -7 ------- Run | Yrd Mat Mat Min Exi Min Mat Fac Sto Combat Hostiles Destroyed 34 | . 5 7 8 . . 9 3 2 Guns 20 | . 4 6 4 . . 3 3 . Cannons 6 | . . 1 2 . . 3 . . AOE 8 | . 1 . 2 . . 3 . 2 Classes Destroyed 10 | . 2 2 3 . . 1 1 1 Worker 1 | . . . . . . 1 . . Builder 1 | . . . . . . . . 1 Hauler 2 | . . 1 . . . 1 . . Watcher 4 | . 1 1 . . . 1 . 1 Swarmer 7 | . . . 4 . . . 1 2 Grunt 13 | . 5 . 2 . . 6 . . Brawler 1 | . . . 1 . . . . . Sentry 11 | . . 7 . . . 3 1 . Programmer 1 | . . . . . . . 1 . Assembled 1 | . . . 1 . . . . . Best Kill Streak 8 | . 2 2 3 . . 8 1 4 Combat Bots Only 6 | . 2 1 3 . . 6 1 2 Max Kills in Single Turn 3 | . 1 1 2 . . 3 1 2 Gunslinging . | . . . . . . . . . Exploded 2 | . 1 . 2 . . 2 . 2 Melee . | . . . . . . . . . Uniques/NPCs Destroyed . | . . . . . . . . . Combat | -11 -10 -9 -9 -9 -8 -8 -7 -7 -------- Run | Yrd Mat Mat Min Exi Min Mat Fac Sto Hostile Shots Fired 678 | . 27 48 27 . . 70 129 377 Missed 288 | . 8 13 8 . . 37 46 176 Damage Taken 4277 | . 289 524 197 . . 592 801 1874 Core 862 | . 47 64 27 . . 18 149 557 Absorbed by Shields . | . . . . . . . . . Core Remaining (%) 88 | 100 81 . . . 77 96 . . Volleys Fired 116 | . 22 25 16 . . 19 17 17 Largest 2 | . 2 2 2 . . 2 2 2 Hottest 117 | . 115 88 86 . . 102 94 117 Shots Fired 213 | . 38 50 32 . . 38 34 21 Gun 169 | . 35 46 16 . . 25 34 13 Cannon 37 | . . 4 16 . . 12 . 5 Launcher 7 | . 3 . . . . 1 . 3 Special . | . . . . . . . . . Kinetic 89 | . 1 25 16 . . 18 17 12 Thermal 76 | . 34 12 . . . 7 17 6 Explosive 7 | . 3 . . . . 1 . 3 Electromagnetic 41 | . . 13 16 . . 12 . . Robot Hit Streak 15 | . 5 15 5 . . 9 11 3 Robot Miss Streak 8 | . 4 8 5 . . 2 2 5 Penetration Max . | . . . . . . . . . Secondary Targets 1 | . 1 . . . . . . . Max Gunslinging Chain 1 | . 1 . . . . . . . Shots Hit Robots 119 | . 19 31 15 . . 26 23 5 Core Hits 70 | . 9 16 9 . . 18 8 10 Critical Kills . | . . . . . . . . . Critical Parts Destroyed . | . . . . . . . . . Critical Strikes 3 | . 1 . . . . 1 1 . Burn 2 | . 1 . . . . . 1 . Corrupt 1 | . . . . . . 1 . . Melee Attacks . | . . . . . . . . . Impact . | . . . . . . . . . Slashing . | . . . . . . . . . Piercing . | . . . . . . . . . Sneak Attacks . | . . . . . . . . . Combat Hostiles . | . . . . . . . . . Follow-up Attacks . | . . . . . . . . . Damage Inflicted 3300 | . 381 475 364 . . 1138 434 508 Guns 1516 | . 241 408 142 . . 279 427 19 Cannons 535 | . . 67 131 . . 256 . 81 Explosions 1230 | . 140 . 91 . . 603 . 396 Melee . | . . . . . . . . . Ramming 19 | . . . . . . . 7 12 Kinetic 869 | . 6 244 142 . . 185 192 100 Thermal 1261 | . 235 57 91 . . 643 235 . Explosive 590 | . 140 . . . . 54 . 396 Electromagnetic 561 | . . 174 131 . . 256 . . Impact . | . . . . . . . . . Slashing . | . . . . . . . . . Piercing . | . . . . . . . . . Highest Corruption 1 | . . . . . . . 1 . Average Corruption 1 | . . . . . . . 1 . Corruption Purged 1 | . . . . . . . 1 . Corruption Blocked . | . . . . . . . . . Overload Shots . | . . . . . . . . . Overflow Damage 60 | . . . 3 . . 35 . 22 Projectiles 8 | . . . 3 . . . . 5 Explosions 52 | . . . . . . 35 . 17 Melee . | . . . . . . . . . Knockbacks 2 | . . . . . . . . 2 Impact . | . . . . . . . . . Kinetic 2 | . . . . . . . . 2 Secondary . | . . . . . . . . . Self-Inflicted Damage 141 | . 53 . . . . 71 . 17 Shots 4 | . 2 . . . . 1 . 1 Rammed 1 | . . . . . . . . 1 Targets Rammed 7 | . . . . . . . 3 4 Kicked 6 | . . . . . . . 3 3 Crushed . | . . . . . . . . . Highest Temperature 168 | . 168 8 . . . 33 28 27 Average Temperature 29 | . 47 4 . . . 9 11 16 Received Heat Transfer 1350 | . 129 153 6 . . 306 192 564 Siege Activations . | . . . . . . . . . Robots Corrupted . | . . . . . . . . . Combat Hostiles . | . . . . . . . . . Parts Fried 1 | . . . . . . 1 . . Impact Corruptions . | . . . . . . . . . Robots Melted . | . . . . . . . . . Combat Hostiles . | . . . . . . . . . Parts Melted 1 | . . . . . . . 1 . Heat Transferred 2104 | . 703 148 100 . . 635 518 . Parts Sabotaged . | . . . . . . . . . Parts Stolen . | . . . . . . . . . Parts Stripped . | . . . . . . . . . Power Chain Reactions 2 | . . . . . . 2 . . Alert | -11 -10 -9 -9 -9 -8 -8 -7 -7 ------- Run | Yrd Mat Mat Min Exi Min Mat Fac Sto Peak Influence 483 | . 201 318 236 . . 483 300 265 Initial 219 | . . 84 39 . . . 219 45 Average 149 | . 109 180 80 . . 251 245 173 Maximum Alert Level 2 | . 1 1 1 . . 2 1 1 Low Security (%) 67 | 100 89 72 87 . 100 33 3 66 Level 1 31 | . 10 27 12 . . 48 96 33 Level 2 1 | . . . . . . 17 . . Level 3 . | . . . . . . . . . Level 4 . | . . . . . . . . . Level 5 . | . . . . . . . . . High Security . | . . . . . . . . . Max Security . | . . . . . . . . . Squads Dispatched 11 | . 2 1 . . . 3 1 4 Investigation 4 | . 1 . . . . 1 . 2 Extermination . | . . . . . . . . . Reinforcement 6 | . 1 1 . . . 2 . 2 Assault . | . . . . . . . . . Garrison 1 | . . . . . . . 1 . Intercept . | . . . . . . . . . Searches Triggered . | . . . . . . . . . Construction Impeded 1 | . . . . . . . . 1 Haulers Reinforced . | . . . . . . . . . Active Scanning Responses . | . . . . . . . . . Cargo Convoy Interrupts . | . . . . . . . . . Stealth | -11 -10 -9 -9 -9 -8 -8 -7 -7 --------- Run | Yrd Mat Mat Min Exi Min Mat Fac Sto Distress Signals 6 | . 1 . 2 . . 2 . 1 Communications Jammed . | . . . . . . . . . Distress Signals . | . . . . . . . . . Times Spotted 92 | . 8 10 11 . . 23 10 30 Peak Tracking Total 16 | . 3 3 4 . . 7 5 16 Tactical Retreats 8 | . . . 1 . . 2 . 5 Traps | -11 -10 -9 -9 -9 -8 -8 -7 -7 ------- Run | Yrd Mat Mat Min Exi Min Mat Fac Sto Traps Triggered 4 | . 1 . . . . . 1 2 Indirectly . | . . . . . . . . . Trap Hack Attempts . | . . . . . . . . . Triggered . | . . . . . . . . . Disarmed . | . . . . . . . . . Reprogrammed . | . . . . . . . . . Reused . | . . . . . . . . . Traps Extracted . | . . . . . . . . . Installed . | . . . . . . . . . Triggered . | . . . . . . . . . Machines | -11 -10 -9 -9 -9 -8 -8 -7 -7 ---------- Run | Yrd Mat Mat Min Exi Min Mat Fac Sto Machines Disabled 9 | . . . 2 . . 6 . 1 Max in Single Turn 6 | . . . 2 . . 6 . 1 Machines Repaired . | . . . . . . . . . Machines Dismantled . | . . . . . . . . . Machines Sabotaged . | . . . . . . . . . Overloaded Fab Kills . | . . . . . . . . . Hacking | -11 -10 -9 -9 -9 -8 -8 -7 -7 --------- Run | Yrd Mat Mat Min Exi Min Mat Fac Sto Machines Accessed 17 | . 2 3 . 2 . 3 3 4 Terminals 13 | . 1 3 . . . 3 3 3 Fabricators . | . . . . . . . . . Repair Stations 1 | . . . . . . . . 1 Recycling Units 1 | . 1 . . . . . . . Scanalyzers . | . . . . . . . . . Garrison Access . | . . . . . . . . . Total Hacks 32 | . 3 7 . 2 . 6 5 9 Successful 13 | . 1 2 . 2 . 4 2 2 Failed 19 | . 2 5 . . . 2 3 7 Catastrophic 1 | . . . . . . 1 . . Database Lockouts . | . . . . . . . . . Manual 19 | . 2 6 . 1 . 3 4 3 Terminals 26 | . 2 7 . . . 6 5 6 Fabricators . | . . . . . . . . . Repair Stations 3 | . . . . . . . . 3 Recycling Units 1 | . 1 . . . . . . . Scanalyzers . | . . . . . . . . . Garrison Access . | . . . . . . . . . Terminal Hacks 6 | . . 1 . 2 . 1 . 2 Record 1 | . . . . 1 . . . . Open Door 2 | . . . . . . . . 2 Branch Access Points 1 | . . 1 . . . . . . Transport Status 1 | . . . . . . 1 . . Derelict Proto ID Bank 1 | . . . . 1 . . . . Fabricator Hacks . | . . . . . . . . . Repair Station Hacks . | . . . . . . . . . Recycling Unit Hacks 1 | . 1 . . . . . . . Report Inventory 1 | . 1 . . . . . . . Scanalyzer . | . . . . . . . . . Garrison Access Hacks . | . . . . . . . . . Unauthorized Hacks 6 | . . 1 . . . 3 2 . Terminals 6 | . . 1 . . . 3 2 . Assimilate 2 | . . . . . . 1 1 . Botnet 4 | . . 1 . . . 2 1 . Fabricators . | . . . . . . . . . Repair Stations . | . . . . . . . . . Recycling Units . | . . . . . . . . . Scanalyzers . | . . . . . . . . . Garrison Access . | . . . . . . . . . Data Cores Recovered . | . . . . . . . . . Used . | . . . . . . . . . Hacking Detections 12 | . 2 3 . . . 3 1 3 Full Trace Events 2 | . . . . . . 1 . 1 Feedback Events . | . . . . . . . . . Feedback Blocked . | . . . . . . . . . Robot Schematics Acquired . | . . . . . . . . . Robots Built . | . . . . . . . . . Authchips . | . . . . . . . . . Time . | . . . . . . . . . Total Robot Build Rating . | . . . . . . . . . Part Schematics Acquired . | . . . . . . . . . Parts Built . | . . . . . . . . . Authchips . | . . . . . . . . . Time . | . . . . . . . . . Total Part Build Rating . | . . . . . . . . . Parts Repaired . | . . . . . . . . . Time . | . . . . . . . . . Parts Recycled . | . . . . . . . . . Recycled Matter . | . . . . . . . . . Retrieved Matter . | . . . . . . . . . Retrieved Components . | . . . . . . . . . Parts Scanalyzed . | . . . . . . . . . Part Schematics Acquired . | . . . . . . . . . Parts Damaged . | . . . . . . . . . Bothacking | -11 -10 -9 -9 -9 -8 -8 -7 -7 ------------ Run | Yrd Mat Mat Min Exi Min Mat Fac Sto Used RIF Installer . | . . . . . . . . . Robots Hacked . | . . . . . . . . . Non-combat . | . . . . . . . . . Combat . | . . . . . . . . . Robot Hacks Applied . | . . . . . . . . . Relay Couplers Released . | . . . . . . . . . Fabnet Peak Effective % . | . . . . . . . . . Robots Rewired . | . . . . . . . . . Allies Hacked . | . . . . . . . . . Hacks Repelled . | . . . . . . . . . Allies | -11 -10 -9 -9 -9 -8 -8 -7 -7 -------- Run | Yrd Mat Mat Min Exi Min Mat Fac Sto Total Allies 1 | . . . . . . . 1 . Largest Group 1 | . . . . . . . 1 . Highest-Rated Group 10 | . . . . . . . 10 . Highest-Rated Ally 10 | . . . . . . . 10 . Total Orders . | . . . . . . . . . Ally Attacks . | . . . . . . . . . Total Damage . | . . . . . . . . . Kills . | . . . . . . . . . Allies Corrupted . | . . . . . . . . . Allies Melted . | . . . . . . . . . Intel | -11 -10 -9 -9 -9 -8 -8 -7 -7 ------- Run | Yrd Mat Mat Min Exi Min Mat Fac Sto Robot Analysis Total . | . . . . . . . . . Derelict Logs Recovered 1 | . . . 1 . . . . . Drone Launches . | . . . . . . . . . Drone Recoveries . | . . . . . . . . . Exploration | -11 -10 -9 -9 -9 -8 -8 -7 -7 ------------- Run | Yrd Mat Mat Min Exi Min Mat Fac Sto Turns Passed 3871 | 56 288 836 957 520 150 315 415 334 Spaces Moved 2795 | 57 258 495 566 406 158 261 294 300 Core 21 | 16 . . . . . . . 5 Treads 1199 | . . 419 566 214 . . . . Legs 1200 | . . . . 192 158 261 294 295 Wheels 375 | 41 258 76 . . . . . . Hover . | . . . . . . . . . Flight . | . . . . . . . . . Fastest Speed 45 | 50 80 80 160 90 90 45 73 45 Average Speed 120 | 71 80 147 160 127 90 90 109 92 Slowest Speed 170 | 80 80 160 160 170 90 110 110 110 Overloaded Moves 78 | . . . . . . 27 3 48 Propulsion Burnouts . | . . . . . . . . . Robots Hopped . | . . . . . . . . . Cave-ins Triggered . | . . . . . . . . . Exploration Rate (%) 47 | 4 61 40 94 76 43 32 11 66 Regions Visited 8 Branch Regions 4 Pre-discovered Areas . | . . . . . . . . . Known Exits Taken 3 | . . 1 . . . 1 1 . Unknown Exits Taken 5 | 1 1 . 1 1 1 . . . Scrap Searched 5 | . . . 4 . 1 . . . Spaces Dug 1 | . . . . . . . . 1 Terrain Destroyed 125 | . 26 . 17 . . 51 . 31 Melee . | . . . . . . . . . Projectile 3 | . . . . . . 1 . 2 AOE 122 | . 26 . 17 . . 50 . 29 Terrain Rammed . | . . . . . . . . . Walls Destroyed . | . . . . . . . . . Machines Disabled . | . . . . . . . . . Actions | -11 -10 -9 -9 -9 -8 -8 -7 -7 --------- Run | Yrd Mat Mat Min Exi Min Mat Fac Sto Total 3087 | 69 301 553 586 409 165 313 355 336 Wait 55 | . 8 . 5 . 8 . 26 8 Move 2787 | 56 257 494 565 405 157 260 293 300 Hop . | . . . . . . . . . Pick Up 29 | 7 5 5 . . . 7 4 1 Fast Attach 19 | 5 1 5 . 2 . 3 2 1 Attach 12 | 1 . 2 . . . 3 2 4 Detach . | . . . . . . . . . Swap 24 | . 4 9 . . . 6 4 1 Drop 38 | . 4 13 . 2 . 15 4 . Fire 116 | . 22 25 16 . . 19 17 17 Melee . | . . . . . . . . . Ram 1 | . . . . . . . . 1 Kick 6 | . . . . . . . 3 3 Crush . | . . . . . . . . . Escape Stasis . | . . . . . . . . . Rewire . | . . . . . . . . . Trap . | . . . . . . . . . Miscellaneous . | . . . . . . . . . Route ------- -11/Scrapyard -10/Materials (discovered 3 exits: *Mat x2 / [*Min]) -9/Materials (discovered 2 exits: *Mat / *Min) -9/Mines (discovered 2 exits: *Mat / *Exi) -9/Exiles -8/Mines (discovered 2 exits: *Mat x2) -8/Materials -7/Factory -7/Storage History --------- Turn | Location | Event 6 | -11/Scrapyard | Discovered new exit (range 15) 57 | -11/Scrapyard | Entered Materials 108 | -10/Materials | Discovered new exit (range 16) 211 | -10/Materials | Discovered new exit (range 12) 310 | -10/Materials | Build established: Mutant 319 | -10/Materials | Discovered new exit (range 16) 345 | -10/Materials | Entered another Materials area 345 | -9/Materials | Evolved 2 slots: Propulsion x1, Utility x1 913 | -9/Materials | Identified exit to Mines 974 | -9/Materials | Discovered new exit (range 12) 1181 | -9/Materials | Entered Mines 1237 | -9/Mines | Assembled infested the area 1261 | -9/Mines | Learned location of 1 exit from Lower Caves 1749 | -9/Mines | Discovered new exit (range 6) 2130 | -9/Mines | Deemed a non-threat by the Exiles lab entrance 2132 | -9/Mines | Discovered new exit (range 5) 2138 | -9/Mines | Entered Exiles 2183 | -9/Exiles | Met 8R-AWN 2207 | -9/Exiles | Met EX-HEX 2300 | -9/Exiles | Met EX-BIN 2322 | -9/Exiles | Aligned with FarCom system 2324 | -9/Exiles | Given EX-Vault access code 2366 | -9/Exiles | Opened EX-Vault 2418 | -9/Exiles | Warned to stay clear of 0b10 Research branches 2482 | -9/Exiles | Found Potential Leg 2485 | -9/Exiles | Found Potential Leg 2544 | -9/Exiles | Met EX-DEC 2577 | -9/Exiles | Visited The Gauntlet 2641 | -9/Exiles | Discovered new exit (range 15) 2658 | -9/Exiles | Left Exiles lab with Potential Leg 2658 | -9/Exiles | Entered Mines 2693 | -8/Mines | Discovered new exit (range 7) 2805 | -8/Mines | Discovered new exit (range 3) 2808 | -8/Mines | Entered Materials 2808 | -8/Materials | Evolved 2 slots: Propulsion x1, Utility x1 3120 | -8/Materials | Discovered new exit (range 3) 3122 | -8/Materials | Identified exit to Factory 3123 | -8/Materials | Entered Factory 3123 | -7/Factory | Evolved 2 slots: Power x1, Utility x1 3498 | -7/Factory | Discovered new exit (range 9) 3511 | -7/Factory | Garrison activated, responded to threat 3528 | -7/Factory | Identified exit to Storage 3538 | -7/Factory | Entered Storage 3811 | -7/Storage | Lost 9 parts (2p2n3u2w) 3839 | -7/Storage | Core integrity fell below 50% 3867 | -7/Storage | Core integrity fell below 20% 3872 | -7/Storage | Destroyed by S-27 Virus with Autogun Last Messages --------------- 03847_ S-27 Virus destroyed. 03853_ Connecting with Door Terminal... >>Open(Door) Sealed Heavy Doors opened. 03858_ Destroyed VTOL Module. 03858_ S-27 Virus knocked back. 03864_ R-06 Scavenger collects VTOL Module. 03864_ VSS Leg destroyed. 03864_ Acquired 2 matter. 03865_ Kicked G-47 Trooper. 03865_ Adv. Assault Cannon destroyed. 03866_ Kicked G-47 Trooper. 03866_ Potential Leg destroyed. 03867_ Penetrated by Slug. 03867_ Airjet destroyed. 03869_ Slammed into G-47 Trooper. 03869_ Airjet broken. 03869_ Destabilizing: Short circuit. 03872_ Y-54 Guardian suffers critical hit (Burn). 03872_ Slug penetrates Y-54 Guardian. Map ----- +----------------------------------------------------+ | ?# + T + """ #??????????? | | ?# # # #??????????? | | ?# # ########## #?? #??????????? | | ?# ###+###????????# #???? #??????????? | | ?# #? ??????????# #?????###??????????? | | ?# #? ""??????????# #???? #??????????? | | ?####+###### """?????????# #???? #??????????? | | ##### #????? """?????????# #??? +??????????? | | #????# ???????## ^##? %#??????????? | | #????# """ ???????# Y # #??????????? | | ## ##????# ""?????????# # #??????????? | | ##/#?????# ???????????# + #??????????? | | # ?????# ???????????# % # #??????????? | | # "????# ???????????# Y # ! #??????????? | | # "????# ????????????## ##? #??????????? | | + "????# ?????????????# Y #?? #??????????? | | # ???#??????????????# Y #??? #??????????? | | # ""??????????????????#YY #??? ! #??????????? | | # """?????????????????# h######?##??????????? | | # ""??????????????????#gYg##! !#?????????????? | | # ???????????????????#h %##! !#?????????????? | | #####???????????????????# ##! !#?????????????? | | # ???????????????????## ##! !#?????????????? | | # "?????????????#######; ### ##?????????????? | | + ""??? T???????# s # T#?????????????? | | # """ "???????# @g ; ##?????????????? | | ## #???????# g #####??????????????? | | ## """ #???????######+##/##??????????????????? | | ## """ ??????????# g #?????????Y????????? | | ## """ ????####????# #??????????????????? | | ## ??????#==#????# #??????????????????? | | ##"#########==#????# #??????????????????? | | ## =#????# #??#######+##??????? | | ## ##???# #### #??????? | | ### ##### / T#???# ##"" """ #??????? | | ##?# #???# # ##???# ##"T """ #??????? | | #??# #???# #####????# ##"" """ ######## | | ####+#####/#????????############# # | | ## #????????????????????# """ + | | ## """" #????????????????????# """ # | | # ""??" #????????????????????# """ #####+## | | # ""???" #????????????????????# #??????? | | / "????" #????????????????????#######+##??????? | | # "???? #??????????????????######### #???????? | | ## "???? ##?????????????????#| ## #???????? | | ## ??? + ?????????????????# ! ## #???????? | | #######??+## #?????????######## ! ## #??????"? | | ?????????? #?????????? """" # ## ###?? ""? | | ????????? #?????????? """" # ## # """ | | ###+#####???# #???#+#???# """" ? ?? """ | +----------------------------------------------------+ Best States ------------- Heat Dissipation 56 Energy Generation 25 Energy Capacity 455 Matter Stores 300 Matter Capacity 300 Sight Range 16 Robot Scan Range 14 Terrain Scan Density 10 Armor Coverage 225 Evasion (%) 61 Recoil Reduction 3 Offensive Hacking 10 Authchip Count 1 Item Schematics ----------------- None Robot Schematics ------------------ None Fabricated ------------ Nothing Alien Tech Used ----------------- None Achievements -------------- None Challenges ------------ None Game ------ Seed BombardmentMediumLaser Manual? 0 Play Time 00:44:42 Cumulative 158.8 hours Start 2024.09.07 @ 18:59:19 End 2024.09.07 @ 19:52:49 Sessions 1 Manual Loads 0 Difficulty Rogue Special Mode None Game No. 221 Rogue 221 Adventurer 0 Explorer 0 Win Type - Total 0 Types 0/0/0/0/0/0/0/0/0 Lore% 32 Gallery% 60 Achievement% 41 Wizard Run 0 Options --------- Layout 0 ASCII 0 Keyboard 0 Movement Mouse Keybinds 0 Fullscreen 1 Font 24/Smallcaps Map View 76x50 Zoom Use 0% Tactical HUD 1 Map Filters NONE Filters NONE Steam 1 RUN: 85663e13-c03d-4b12-a341-3d4ebecd1841